bitfinex-derivatives/quotes_SOLF0:USTF0_20241211
["timestamp","ask_amount","ask_price","bid_price","bid_amount"]
[1733930505766,1.3925,229.37,229.28,12.07555523]
[1733930505972,2.1784,229.38,229.28,12.07555523]
[1733930506273,2.17950394,229.41,229.37,12.07555523]
[1733930506468,2.17950394,229.41,229.29,3.76]
[1733930506469,2.17950394,229.41,229.4,12.07555523]
[1733930506969,2.7748,229.53,229.4,12.07555523]
[1733930506970,1.4489,229.53,229.4,12.07555523]
[1733930507267,2.17864923,229.5,229.39,23.00612033]
[1733930507466,13.27037083,229.51,229.4,3.76]
[1733930507667,11.09327083,229.51,229.43,19.24612033]
[1733930507863,11.09327083,229.51,229.41,19.24612033]
[1733930508063,11.09327083,229.51,229.45,19.24612033]
[1733930508667,11.09327083,229.51,229.46,3.76]
[1733930510564,8.90617083,229.51,229.47,3.76]
[1733930510771,19.24612033,229.64,229.47,3.76]
[1733930511169,2.1766,229.56,229.47,3.76]
[1733930511367,19.24612033,229.64,229.49,5.11782396]
[1733930511667,19.24612033,229.6,229.49,5.11782396]
[1733930511868,19.24612033,229.56,229.49,5.11782396]
[1733930512068,19.24612033,229.6,229.49,5.11782396]
[1733930512263,2.177,229.53,229.49,5.11782396]
[1733930512470,19.24612033,229.52,229.4,5.4448123]
[1733930512669,19.24612033,229.52,229.37,9.02178583]
[1733930512865,2.1778,229.45,229.37,9.02178583]
[1733930513068,2.1778,229.45,229.39,3.63899397]
[1733930513265,1.3153,229.63,229.39,3.63899397]
[1733930513266,19.24612033,229.56,229.39,3.63899397]
[1733930513469,19.24612033,229.6,229.45,2.1776]
[1733930513665,19.24612033,229.6,229.46,3.76]
[1733930513967,1.3153,229.63,229.39,3.63899397]
[1733930514171,19.24612033,229.48,229.39,2.17969397]
[1733930514670,19.24612033,229.44,229.39,2.17969397]
[1733930514873,19.24612033,229.4,229.26,6.80964358]
[1733930515075,19.24612033,229.44,229.27,2.18083482]
[1733930515366,19.24612033,229.44,229.28,3.98]
[1733930515570,19.24612033,229.44,229.33,5.21266962]
[1733930515772,1.4184,229.47,229.33,5.21266962]
[1733930516066,2.1779,229.43,229.33,5.21266962]
[1733930516271,1.4184,229.47,229.33,5.21266962]
[1733930516669,5.419,229.59,229.33,24.45878995]
[1733930516970,19.24612033,229.54,229.37,19.24612033]
[1733930517172,2.1773,229.5,229.41,2.178]
[1733930517371,19.24612033,229.54,229.38,3.98]
[1733930517563,19.24612033,229.54,229.38,23.22612033]
[1733930517967,19.24612033,229.54,229.38,3.98]
[1733930518475,2.1776,229.46,229.37,3.98]
[1733930518772,19.24612033,229.54,229.37,3.98]
[1733930518964,2.1774,229.48,229.38,2.1783]
[1733930519167,2.1774,229.48,229.38,33.45498146]
[1733930519364,1.3607,229.56,229.38,33.45498146]
[1733930519567,2.1775,229.47,229.38,33.45498146]
[1733930520364,2.1776,229.46,229.38,31.27668146]
[1733930520770,2.1778,229.44,229.34,32.64058146]
[1733930521173,31.27668146,229.53,229.35,3.98]
[1733930521369,1.3607,229.56,229.38,31.27668146]
[1733930521566,1.3607,229.56,229.35,3.98]
[1733930521567,45.32,229.74,229.46,31.27668146]
[1733930521769,31.27668146,229.66,229.47,5.2959]
[1733930522067,31.27668146,229.66,229.5,31.27668146]
[1733930522677,31.27668146,229.66,229.51,2.1771]
[1733930522873,31.27668146,229.62,229.47,2.7163]
[1733930523074,31.27668146,229.66,229.53,5.29852393]
[1733930523468,1.3661,229.67,229.53,5.29852393]
[1733930523671,2.176,229.63,229.55,2.1767]
[1733930524174,31.27668146,229.63,229.47,2.7163]
[1733930524473,2.1765,229.57,229.52,5.16963999]
[1733930524771,31.27668146,229.63,229.52,5.16963999]
[1733930524977,31.27668146,229.63,229.47,2.7163]
[1733930524978,2.1769,229.53,229.47,2.7163]
[1733930525274,31.27668146,229.59,229.48,5.1706851]
[1733930525476,31.27668146,229.59,229.45,3.98]
[1733930525776,31.27668146,229.51,229.35,31.27668146]
[1733930525968,31.27668146,229.51,229.41,5.34417348]
[1733930526173,31.27668146,229.51,229.31,31.27668146]
[1733930526174,1.3641,229.5,229.31,31.27668146]
[1733930526370,1.3641,229.5,229.38,5.15135056]
[1733930526575,1.3641,229.5,229.3,1.42]
[1733930526576,31.27668146,229.43,229.3,1.42]
[1733930526775,31.27668146,229.39,229.3,5.2062802]
[1733930526969,31.27668146,229.39,229.27,2.18083482]
[1733930527175,1.3753,229.38,229.27,2.18083482]
[1733930527373,31.27668146,229.31,229.16,1.445]
[1733930527576,2.1798,229.23,229.17,2.18178644]
[1733930527770,31.27668146,229.27,229.17,2.18178644]
[1733930528170,31.27668146,229.23,229.03,2.7972]
[1733930528371,31.27668146,229.23,229.04,2.18302479]
[1733930528572,31.27668146,229.19,229.04,2.18302479]
[1733930528774,31.27668146,229.15,229.04,2.18302479]
[1733930529476,35.25668146,229.19,229.04,2.18302479]
[1733930529980,31.27668146,229.24,229.05,31.27668146]
[1733930530373,3.98,229.23,229.04,2.18302479]
[1733930530574,31.27668146,229.17,229.04,2.18302479]
[1733930530779,31.27668146,229.21,229.04,2.18302479]
[1733930531381,3.98,229.23,229.06,31.27668146]
[1733930531579,31.27668146,229.25,229.06,31.27668146]
[1733930531976,31.27668146,229.25,229.11,2.1808]
[1733930532377,2.1798,229.23,229.11,2.1808]
[1733930533079,31.27668146,229.46,229.18,31.27668146]
[1733930533279,31.27668146,229.38,229.19,3.98]
[1733930533486,2.1793,229.28,229.19,3.98]
[1733930533783,31.27668146,229.3,229.19,3.98]
[1733930534082,3.6261,229.33,229.22,2.1798]
[1733930534383,1.4473,229.33,229.14,6.80005057]
[1733930534583,2.1796,229.25,229.14,8.98065057]
[1733930534778,31.27668146,229.27,229.14,5.36385057]
[1733930535785,31.27668146,229.23,229.08,5.4133]
[1733930536086,2.1804,229.17,229.07,2.1812]
[1733930536289,31.27668146,229.23,229.05,32.71288146]
[1733930536588,31.27668146,229.23,229.05,38.1669518]
[1733930536792,31.27668146,229.19,229.05,1.4362]
[1733930536982,31.27668146,229.23,229.06,5.45290012]
[1733930537180,31.27668146,229.23,229.07,5.45290012]
[1733930537385,31.27668146,229.23,229.08,5.45357349]
[1733930537582,31.27668146,229.23,229.05,32.71288146]
[1733930537583,2.18131053,229.22,229.05,32.71288146]
[1733930537776,2.18131053,229.22,229.06,5.45333915]
[1733930537981,1.4283,229.21,229.11,2.1808]
[1733930538389,2.1801,229.2,229.11,2.1808]
[1733930538582,2.1801,229.2,229.04,3.98]
[1733930538583,1.4283,229.21,229.04,3.98]
[1733930538780,31.27668146,229.19,229.05,5.45362473]
[1733930539087,31.27668146,229.15,228.95,3.98]
[1733930539287,31.27668146,229.15,228.96,5.45524473]
[1733930539589,31.27668146,229.11,229.0,5.22289163]
[1733930539880,31.27668146,229.15,229.0,5.22289163]
[1733930540083,2.1806,229.14,229.03,2.1816]
[1733930540282,31.27668146,229.15,229.0,5.22289163]
[1733930540485,31.27668146,229.15,229.01,5.45497992]
[1733930540681,31.27668146,229.15,229.04,2.1815]
[1733930540884,31.27668146,229.15,229.0,5.22289163]
[1733930541384,2.1807,229.13,229.0,5.22289163]
[1733930541586,31.27668146,229.19,229.01,5.4555622]
[1733930541886,31.27668146,229.19,229.02,5.4555622]
[1733930542088,31.27668146,229.19,229.0,36.49957309]
[1733930542288,31.27668146,229.19,229.01,5.4553513]
[1733930542589,31.27668146,229.19,229.02,5.4553513]
[1733930542784,31.27668146,229.19,229.03,5.4553513]
[1733930542986,31.27668146,229.19,229.0,36.49957309]
[1733930543286,31.27668146,229.15,229.01,5.45523193]
[1733930543491,31.27668146,229.15,229.0,5.22289163]
[1733930543789,31.27668146,229.15,228.94,5.313]
[1733930543986,31.27668146,229.15,228.99,5.35684685]
[1733930544282,2.1813,229.07,228.99,5.35684685]
[1733930544483,31.27668146,229.11,228.94,1.333]
[1733930544688,31.27668146,229.07,228.89,4.02]
[1733930544892,31.27668146,229.07,228.95,5.45668996]
[1733930545484,31.27668146,229.03,228.95,5.45668996]
[1733930545793,31.27668146,229.07,228.95,5.45668996]
[1733930546187,5.4264,229.09,228.95,5.45668996]
[1733930546383,2.7797,229.1,228.95,5.45668996]
[1733930546586,2.18131053,229.22,228.95,5.45668996]
[1733930546587,31.27668146,229.17,228.98,31.27668146]
[1733930546990,2.1803,229.18,229.02,31.27668146]
[1733930547187,2.8532,229.21,229.06,31.27668146]
[1733930547389,1.4468,229.21,229.06,35.29668146]
[1733930547688,1.4468,229.21,229.11,2.1809]
[1733930547892,2.18131053,229.22,229.1,31.27668146]
[1733930548096,2.18131053,229.22,229.11,5.45326497]
[1733930548294,2.18131053,229.22,229.2,2.18]
[1733930548487,0.00057083,229.22,229.2,2.18]
[1733930549485,0.00057083,229.22,229.21,5.45075808]
[1733930549688,0.00057083,229.22,229.2,2.18]
[1733930549689,0.00057083,229.22,229.15,9.47326497]
[1733930549987,2.18047083,229.22,229.16,5.45147692]
[1733930550292,0.00057083,229.22,229.16,5.45147692]
[1733930550889,0.00057083,229.22,229.13,5.30828998]
[1733930551086,2.1802,229.19,229.13,5.30828998]
[1733930551387,0.00057083,229.22,229.13,5.30828998]
[1733930551992,0.00057083,229.22,228.91,44.34668146]
[1733930551993,31.27668146,229.26,229.1,5.45343697]
[1733930552192,31.27668146,229.26,229.07,32.63638146]
[1733930552789,31.27668146,229.26,229.12,5.27727163]
[1733930553390,1.4186,229.31,229.15,31.27668146]
[1733930554192,1.4186,229.31,229.16,5.4518208]
[1733930554494,1.4186,229.31,229.17,5.45136854]
[1733930554495,3.5990544,229.31,229.17,5.45136854]
[1733930554690,3.5990544,229.31,229.2,2.18]
[1733930554991,3.5990544,229.31,229.16,5.45141447]
[1733930554992,2.1793,229.28,229.16,5.45141447]
[1733930555195,3.5990544,229.31,229.16,5.45141447]
[1733930555596,2.1804544,229.31,229.15,31.27668146]
[1733930556295,2.1804544,229.31,229.2,31.27668146]
[1733930556591,2.1804544,229.31,229.21,5.45147478]
[1733930556795,2.1804544,229.31,229.2,31.27668146]
[1733930556988,2.1804544,229.31,229.25,2.1795]
[1733930557192,2.1804544,229.31,229.2,31.27668146]
[1733930557394,2.1804544,229.31,229.21,5.45069216]
[1733930557692,2.1804544,229.31,229.29,2.1792]
[1733930560293,2.1804544,229.31,229.27,7.48983581]
[1733930560599,31.27668146,229.39,229.27,7.48983581]
[1733930560798,2.1788,229.33,229.27,7.48983581]
[1733930561396,31.27668146,229.39,229.27,5.31053581]
[1733930562096,31.27668146,229.35,229.22,5.45014191]
[1733930562296,31.27668146,229.35,229.19,5.45073541]
[1733930562498,2.1797,229.24,229.18,2.1801]
[1733930562699,31.27668146,229.31,229.14,4.02]
[1733930562995,4.02,229.33,229.15,5.25417799]
[1733930562996,31.27668146,229.27,229.15,5.25417799]
[1733930563495,2.1796,229.25,229.17,2.1803]
[1733930563698,31.27668146,229.27,229.15,5.25417799]
[1733930563998,1.4205,229.3,229.15,5.25417799]
[1733930564402,2.1796,229.25,229.17,2.1803]
[1733930564701,1.4205,229.3,229.17,2.1803]
[1733930565297,2.1797,229.24,229.16,2.1804]
[1733930565698,1.4205,229.3,229.16,2.1804]
[1733930565895,1.4205,229.3,229.15,5.25417799]
[1733930566096,31.27668146,229.27,229.15,7.43467799]
[1733930566299,31.27668146,229.27,229.15,5.25417799]
[1733930566495,2.1788,229.34,229.16,36.7290215]
[1733930566705,1.4075,229.37,229.24,31.27668146]
[1733930567005,1.4152,229.46,229.25,4.02]
[1733930567205,2.17940894,229.42,229.25,5.3537]
[1733930567603,2.1784,229.37,229.25,5.3537]
[1733930568009,2.1784,229.37,229.26,5.45003778]
[1733930568210,2.1785,229.36,229.29,2.1791]
[1733930568406,2.17940894,229.42,229.25,4.02]
[1733930568608,31.27668146,229.37,229.26,5.44997819]
[1733930568805,31.27668146,229.37,229.27,5.44997819]
[1733930569020,31.27668146,229.41,229.28,5.44976697]
[1733930569319,2.17940894,229.42,229.29,5.44970334]
[1733930569513,2.17940894,229.42,229.3,5.44970334]
[1733930569719,2.17940894,229.42,229.25,4.02]
[1733930569922,2.17940894,229.42,229.32,2.1789]
[1733930570218,2.17940894,229.42,229.29,5.18350631]
[1733930570415,2.1785,229.36,229.29,5.18350631]
[1733930570621,2.1785,229.36,229.3,5.4492845]
[1733930570821,2.1785,229.36,229.31,5.4492845]
[1733930571124,2.1785,229.37,229.29,5.18350631]
[1733930571324,2.1785,229.37,229.3,5.44933771]
[1733930571527,2.1787,229.34,229.31,5.44933771]
[1733930571818,31.27668146,229.37,229.29,5.18350631]
[1733930572019,31.27668146,229.37,229.3,5.4496659]
[1733930572222,31.27668146,229.37,229.29,5.18350631]
[1733930572223,2.1787,229.34,229.29,5.18350631]
[1733930573023,2.1786,229.35,229.29,5.18350631]
[1733930574718,31.27668146,229.37,229.29,5.18350631]
[1733930574927,34.09938146,229.46,229.29,5.18350631]
[1733930574928,2.8227,229.46,229.29,5.18350631]
[1733930575226,31.27668146,229.45,229.29,5.18350631]
[1733930575419,31.27668146,229.45,229.3,5.4493231]
[1733930575625,31.27668146,229.45,229.31,5.4493231]
[1733930575824,33.45438146,229.45,229.36,2.1785]
[1733930576022,33.45438146,229.45,229.3,1.3604]
[1733930576023,31.27668146,229.45,229.3,1.3604]
[1733930576318,31.27668146,229.45,229.31,5.44849455]
[1733930576525,31.27668146,229.49,229.32,5.44849455]
[1733930576727,2.7522,229.51,229.33,36.72517601]
[1733930576922,31.27668146,229.55,229.37,31.27668146]
[1733930577423,2.1769,229.53,229.38,5.44849455]
[1733930577629,31.27668146,229.55,229.39,5.44849455]
[1733930578323,31.27668146,229.55,229.4,5.44849455]
[1733930578522,31.27668146,229.55,229.44,2.1777]
[1733930578721,31.27668146,229.55,229.37,31.27668146]
[1733930578926,2.177,229.52,229.43,2.1778]
[1733930579127,31.27668146,229.55,229.48,5.2185805]
[1733930579727,2.7522,229.59,229.48,5.2185805]
[1733930579728,32.71198146,229.59,229.48,5.2185805]
[1733930579929,31.27668146,229.59,229.48,5.2185805]
[1733930580124,31.27668146,229.63,229.53,2.1768]
[1733930580330,31.27668146,229.63,229.48,5.2185805]
[1733930580331,31.27668146,229.6,229.48,5.2185805]
[1733930580530,31.27668146,229.68,229.48,5.2185805]
[1733930580531,31.27668146,229.64,229.49,3.88]
[1733930580727,2.1761,229.62,229.54,2.1768]
[1733930580925,2.1761,229.62,229.5,5.4444009]
[1733930581129,2.6865,229.66,229.51,5.4444009]
[1733930581323,2.6865,229.66,229.49,3.88]
[1733930581522,2.6865,229.66,229.5,5.44389884]
[1733930581727,31.27668146,229.73,229.53,31.27668146]
[1733930581927,2.1757,229.66,229.58,2.1764]
[1733930582225,1.4117,229.72,229.59,3.88]
[1733930582425,1.4117,229.72,229.6,5.16627394]
[1733930582934,1.4117,229.72,229.62,2.176]
[1733930583231,1.4117,229.72,229.6,5.16627394]
[1733930583728,31.27668146,229.69,229.6,5.16627394]
[1733930583934,2.1761,229.62,229.6,5.16627394]
[1733930584131,31.27668146,229.69,229.55,3.88]
[1733930584329,31.27668146,229.65,229.45,32.66308146]
[1733930584630,31.27668146,229.65,229.52,2.1769]
[1733930584826,31.27668146,229.65,229.49,3.88]
[1733930585026,31.27668146,229.61,229.49,3.88]
[1733930585624,31.27668146,229.65,229.49,3.88]
[1733930586032,2.1765,229.58,229.49,3.88]
[1733930586532,31.27668146,229.65,229.49,3.88]
[1733930586734,2.1762,229.61,229.49,3.88]
[1733930587033,31.27668146,229.65,229.49,3.88]
[1733930587232,2.1762,229.61,229.49,6.0573]
[1733930587434,31.27668146,229.65,229.5,3.88]
[1733930588130,31.27668146,229.65,229.48,5.2185805]
[1733930588329,2.1768,229.55,229.48,5.2185805]
[1733930588535,31.27668146,229.65,229.48,5.2185805]
[1733930588536,1.3907,229.64,229.48,5.2185805]
[1733930588736,31.27668146,229.61,229.48,5.2185805]
[1733930589033,2.1772,229.5,229.48,5.2185805]
[1733930589235,31.27668146,229.53,229.4,3.88]
[1733930590027,2.1774,229.48,229.44,5.33430443]
[1733930590232,31.27668146,229.57,229.44,5.33430443]
[1733930590433,1.3495,229.6,229.44,5.33430443]
[1733930590731,1.3495,229.6,229.44,36.61098589]
[1733930591131,1.3495,229.6,229.45,5.44470223]
[1733930591430,1.3495,229.6,229.44,36.61098589]
[1733930591431,1.3495,229.6,229.46,5.44470223]
[1733930591633,1.3495,229.6,229.44,36.61098589]
[1733930591835,2.1768,229.54,229.45,5.44483385]
[1733930592025,1.3495,229.6,229.46,5.44483385]
[1733930592227,1.3495,229.6,229.47,5.44483385]
[1733930592429,1.3495,229.6,229.44,36.61098589]
[1733930592430,1.3495,229.6,229.44,5.33430443]
[1733930592728,31.27668146,229.57,229.45,5.44541067]
[1733930593330,2.1775,229.47,229.45,5.44541067]
[1733930594037,31.27668146,229.53,229.45,5.44541067]
[1733930594433,1.3495,229.6,229.45,7.62301067]
[1733930594634,2.1767,229.56,229.45,5.44541067]
[1733930594839,1.3495,229.6,229.45,5.44541067]
[1733930595242,2.1766,229.57,229.48,2.1774]
[1733930595536,1.3495,229.6,229.45,5.44541067]
[1733930595735,1.3495,229.6,229.47,31.27668146]
[1733930595931,31.27668146,229.69,229.46,1.4542]
[1733930596137,1.3689,229.68,229.53,2.1769]
[1733930596339,2.1763,229.59,229.53,2.1769]
[1733930596540,1.3689,229.68,229.5,3.88]
[1733930596742,1.3689,229.68,229.52,2.177]
[1733930596936,1.3689,229.68,229.5,3.88]
[1733930597140,1.3689,229.68,229.51,5.44355683]
[1733930597342,1.3689,229.68,229.57,2.1765]
[1733930597941,1.3689,229.68,229.5,3.88]
[1733930598237,2.1762,229.61,229.56,5.28640658]
[1733930598933,1.3689,229.68,229.56,5.28640658]
[1733930599142,31.27668146,229.61,229.47,2.7232]
[1733930599435,31.27668146,229.57,229.48,5.44478649]
[1733930599634,2.1776,229.47,229.44,5.33430443]
[1733930599932,1.3274,229.56,229.44,5.33430443]
[1733930600133,1.3274,229.56,229.45,7.62301067]
[1733930600338,1.3274,229.56,229.45,5.44541067]
[1733930600740,2.177,229.52,229.46,5.44559377]
[1733930601045,2.177,229.52,229.45,5.44541067]
[1733930601240,2.177,229.52,229.46,5.44556737]
[1733930601541,2.177,229.52,229.44,5.33430443]
[1733930601841,2.177,229.52,229.45,5.44566517]
[1733930602040,2.1772,229.51,229.46,5.44566517]
[1733930602241,1.3274,229.56,229.44,5.33430443]
[1733930602440,1.3274,229.56,229.44,36.61098589]
[1733930602641,2.8362,229.6,229.45,5.44609269]
[1733930602836,2.8362,229.6,229.44,36.61098589]
[1733930602837,2.8362,229.6,229.47,31.25204257]
[1733930603044,2.8362,229.6,229.47,35.13204257]
[1733930603240,1.3963,229.6,229.47,35.13204257]
[1733930603439,31.25204257,229.66,229.47,36.51894257]
[1733930603644,2.1763,229.6,229.53,2.1769]
[1733930603841,31.25204257,229.66,229.54,5.44609269]
[1733930604044,31.25204257,229.66,229.47,36.51894257]
[1733930604446,31.25204257,229.66,229.48,5.44385651]
[1733930604740,31.25204257,229.66,229.49,5.44385651]
[1733930604941,31.25204257,229.66,229.51,31.25204257]
[1733930605239,31.25204257,229.66,229.52,5.44385651]
[1733930605447,31.25204257,229.66,229.53,5.44385651]
[1733930605746,2.1762,229.61,229.47,36.51894257]
[1733930605946,2.1762,229.61,229.48,5.44402904]
[1733930606144,2.1762,229.61,229.54,2.1768]
[1733930606343,31.25204257,229.66,229.49,1.365]
[1733930606541,31.25204257,229.66,229.57,5.26393347]
[1733930607446,2.176,229.63,229.57,5.26393347]
[1733930607649,31.25204257,229.66,229.57,5.26393347]
[1733930607845,31.25204257,229.66,229.48,2.7506]
[1733930608044,2.1761,229.61,229.49,5.44375972]
[1733930608249,31.25204257,229.66,229.5,9.20375972]
[1733930608448,31.25204257,229.66,229.51,5.44375972]
[1733930608646,2.176,229.62,229.55,2.1767]
[1733930608945,31.25204257,229.66,229.56,5.28065184]
[1733930609945,31.25204257,229.66,229.56,7.45725184]
[1733930610139,2.8837,229.68,229.56,5.28065184]
[1733930610345,31.25204257,229.66,229.56,5.28065184]
[1733930611047,2.8837,229.68,229.56,7.45725184]
[1733930611048,2.176,229.63,229.56,7.45725184]
[1733930611244,2.8837,229.68,229.57,5.44366649]
[1733930611451,2.8837,229.68,229.58,5.44366649]
[1733930611641,2.8837,229.68,229.56,5.28065184]
[1733930611642,2.8837,229.68,229.59,5.44366649]
[1733930611844,2.8837,229.68,229.56,5.28065184]
[1733930612449,2.8837,229.68,229.57,5.44303015]
[1733930612642,2.8837,229.68,229.56,5.28065184]
[1733930612842,2.8837,229.68,229.57,5.44324023]
[1733930613048,2.8837,229.68,229.56,5.28065184]
[1733930613247,2.1759,229.64,229.57,7.61967327]
[1733930613551,2.8837,229.68,229.56,5.28065184]
[1733930613753,2.8837,229.68,229.57,5.44307125]
[1733930613954,2.176,229.63,229.56,5.28065184]
[1733930614249,2.176,229.63,229.57,5.44342738]
[1733930614453,2.1762,229.61,229.56,5.28065184]
[1733930614648,2.8837,229.68,229.57,5.44341901]
[1733930614844,31.25204257,229.66,229.51,3.5261]
[1733930615049,31.25204257,229.66,229.52,5.4432946]
[1733930615248,19.23346589,229.64,229.52,5.4432946]
[1733930615451,2.1766,229.56,229.53,5.44339401]
[1733930615747,6.6437,229.68,229.54,5.44339401]
[1733930615748,19.23346589,229.6,229.54,5.44339401]
[1733930615955,19.23346589,229.6,229.46,2.1775]
[1733930616247,19.23346589,229.64,229.49,5.1623182]
[1733930616448,19.23346589,229.64,229.52,2.1769]
[1733930616753,19.23346589,229.64,229.53,5.44550221]
[1733930616954,19.23346589,229.64,229.49,5.1623182]
[1733930617148,2.1762,229.61,229.5,5.44427729]
[1733930617349,31.24582182,229.67,229.51,5.44427729]
[1733930617543,31.24582182,229.67,229.49,5.1623182]
[1733930617544,2.8837,229.68,229.52,36.69009911]
[1733930617750,2.8837,229.68,229.53,13.32507729]
[1733930618049,2.8837,229.68,229.53,7.8808]
[1733930618345,2.8837,229.68,229.58,2.1764]
[1733930618547,2.8837,229.68,229.59,5.44348317]
[1733930618747,178.33612737,229.77,229.54,31.24582182]
[1733930618945,31.24582182,229.75,229.54,31.24582182]
[1733930619347,2.1755,229.69,229.61,2.1761]
[1733930619652,2.1755,229.69,229.62,5.44315431]
[1733930619848,2.1755,229.69,229.63,5.44250881]
[1733930620051,31.24582182,229.75,229.64,5.44213612]
[1733930620253,2.1753,229.7,229.65,5.44213612]
[1733930620456,31.24582182,229.75,229.66,5.44213612]
[1733930620751,2.1755,229.68,229.61,5.20337747]
[1733930620958,31.24582182,229.75,229.62,5.44192285]
[1733930621254,31.24582182,229.75,229.61,5.20337747]
[1733930621255,2.1756,229.67,229.63,5.44192285]
[1733930621450,31.24582182,229.71,229.64,5.44192285]
[1733930621655,31.24582182,229.71,229.65,5.44192285]
[1733930621847,31.24582182,229.71,229.66,5.44192285]
[1733930621848,2.1756,229.67,229.66,5.44192285]
[1733930622153,31.24582182,229.71,229.66,5.44195455]
[1733930622345,31.24582182,229.71,229.61,5.20337747]
[1733930622549,31.24582182,229.71,229.62,5.44280603]
[1733930622748,31.24582182,229.71,229.63,5.44280603]
[1733930622954,31.24582182,229.75,229.61,5.20337747]
[1733930623151,31.24582182,229.75,229.62,5.44238929]
[1733930623348,2.7552,229.76,229.62,5.44238929]
[1733930623548,2.7552,229.76,229.63,6.88398929]
[1733930623751,2.7552,229.76,229.64,5.44238929]
[1733930623951,2.7552,229.76,229.65,5.44238929]
[1733930624150,2.7552,229.76,229.66,5.44238929]
[1733930624356,2.7552,229.76,229.67,5.44238929]
[1733930624552,2.175,229.73,229.68,5.44238929]
[1733930624750,2.7552,229.76,229.63,1.4416]
[1733930624956,178.33612737,229.89,229.64,5.44102664]
[1733930625151,32.60422182,229.84,229.7,2.1753]
[1733930625355,32.60422182,229.84,229.65,3.76]
[1733930625356,31.24582182,229.8,229.65,6.53]
[1733930625656,31.24582182,229.76,229.66,5.44099087]
[1733930625956,1.3706,229.75,229.58,3.76]
[1733930626156,2.1754,229.7,229.62,7.61770845]
[1733930626463,1.3706,229.75,229.63,5.44170845]
[1733930626657,1.3706,229.75,229.64,5.44170845]
[1733930626962,31.22222911,229.76,229.65,5.44170845]
[1733930627156,1.3706,229.75,229.58,3.76]
[1733930627362,31.22222911,229.72,229.62,5.44167941]
[1733930627557,31.22222911,229.72,229.63,5.44167941]
[1733930627762,31.22222911,229.77,229.64,5.44167941]
[1733930627965,31.22222911,229.81,229.61,36.42560658]
[1733930628261,31.22222911,229.81,229.7,2.1752]
[1733930628262,2.1746,229.77,229.7,2.1752]
[1733930628653,2.1746,229.77,229.68,3.76]
[1733930628853,2.1746,229.77,229.69,5.44011328]
[1733930629158,2.1746,229.77,229.7,5.44011328]
[1733930629361,31.22222911,229.81,229.68,3.76]
[1733930629661,1.3921,229.82,229.69,5.44008047]
[1733930629856,1.3921,229.82,229.7,5.44008047]
[1733930630058,2.1746,229.77,229.7,2.1753]
[1733930630262,2.1746,229.77,229.68,3.76]
[1733930630457,0.69164493,229.83,229.69,5.44012328]
[1733930630663,0.69164493,229.83,229.7,6.86762328]
[1733930630853,0.69164493,229.83,229.71,5.44012328]
[1733930631052,1.3584,229.84,229.7,1.4275]
[1733930631261,1.3584,229.84,229.73,2.175]
[1733930631958,2.1746,229.78,229.71,2.1751]
[1733930632364,2.1746,229.78,229.7,1.4275]
[1733930632764,1.3584,229.84,229.73,2.175]
[1733930632970,1.3584,229.84,229.7,1.4275]
[1733930633570,2.1742,229.82,229.7,1.4275]
[1733930634170,1.3584,229.84,229.74,7.33792977]
[1733930634468,1.3548,229.87,229.74,5.16312977]
[1733930634668,1.3548,229.87,229.78,2.1745]
[1733930634970,2.1739,229.85,229.78,2.1745]
[1733930635168,33.94572911,229.92,229.8,2.1743]
[1733930635369,33.94572911,229.92,229.74,5.16312977]
[1733930635574,2.174,229.84,229.74,5.16312977]
[1733930636467,2.174,229.84,229.75,5.43817868]
[1733930636767,2.174,229.84,229.74,5.16312977]
[1733930637070,2.1745,229.79,229.74,5.16312977]
[1733930637261,19.19621007,229.87,229.74,5.16312977]
[1733930638268,2.7235,229.92,229.74,5.16312977]
[1733930638469,19.19621007,229.86,229.74,5.16312977]
[1733930638675,19.19621007,229.9,229.74,5.16312977]
[1733930639067,2.1742,229.82,229.74,5.16312977]
[1733930639267,19.19621007,229.9,229.74,5.16312977]
[1733930639470,2.7235,229.92,229.74,5.16312977]
[1733930639471,19.19621007,229.86,229.74,5.16312977]
[1733930639768,2.7235,229.92,229.74,5.16312977]
[1733930639969,19.19621007,229.9,229.74,5.16312977]
[1733930640272,19.19621007,229.86,229.74,5.16312977]
[1733930641469,2.1746,229.78,229.74,5.16312977]
[1733930641669,19.19621007,229.86,229.74,5.16312977]
[1733930644872,19.19621007,229.9,229.74,5.16312977]
[1733930645270,2.1741,229.83,229.77,2.1746]
[1733930645672,2.1742,229.82,229.75,2.1747]